[Event "*** Titled Tuesday Blitz"]
[Site "Chess.com"]
[Date "2019.11.05"]
[Round "3"]
[White "snowlord"]
[Black "Nazar-Nazar"]
[Result "1/2-1/2"]
[WhiteElo "2728"]
[BlackElo "2498"]
[TimeControl "180+2"]
[EndTime "13:38:44 PST"]
[Termination "Game drawn by repetition"]

1. Nf3 {[%clk 0:03:01.4]} 1... Nf6 {[%clk 0:02:59.4]} 2. g3 {[%clk 0:03:03]}
2... d5 {[%clk 0:03:00.1]} 3. Bg2 {[%clk 0:03:04.1]} 3... e6 {[%clk 0:03:01.4]}
4. c4 {[%clk 0:03:04.7]} 4... Be7 {[%clk 0:02:55.6]} 5. b3 {[%clk 0:03:05.1]}
5... c5 {[%clk 0:02:54.2]} 6. O-O {[%clk 0:03:06.1]} 6... O-O {[%clk 0:02:49.4]}
7. cxd5 {[%clk 0:03:04.8]} 7... Nxd5 {[%clk 0:02:44.4]} 8. Bb2 {[%clk
0:03:04.6]} 8... Nc6 {[%clk 0:02:45.5]} 9. Nc3 {[%clk 0:03:01.9]} 9... Bf6
{[%clk 0:02:23.7]} 10. Qc1 {[%clk 0:02:59.7]} 10... Nxc3 {[%clk 0:01:35]} 11.
dxc3 {[%clk 0:03:01.6]} 11... Qc7 {[%clk 0:01:31.2]} 12. Ng5 {[%clk 0:02:13.2]}
12... b6 {[%clk 0:00:58.9]} 13. Be4 {[%clk 0:01:50]} 13... g6 {[%clk 0:00:42.8]}
14. c4 {[%clk 0:01:21.6]} 14... Bxb2 {[%clk 0:00:35.5]} 15. Qxb2 {[%clk
0:01:22.4]} 15... Bb7 {[%clk 0:00:36.6]} 16. Rad1 {[%clk 0:01:09.4]} 16... Rad8
{[%clk 0:00:36.8]} 17. e3 {[%clk 0:00:59.1]} 17... Qe7 {[%clk 0:00:28.6]} 18. h4
{[%clk 0:00:45.3]} 18... h6 {[%clk 0:00:20.8]} 19. Nf3 {[%clk 0:00:44.1]} 19...
Rxd1 {[%clk 0:00:20.8]} 20. Rxd1 {[%clk 0:00:44.6]} 20... Rd8 {[%clk 0:00:22.7]}
21. Rd2 {[%clk 0:00:27.4]} 21... Rxd2 {[%clk 0:00:14.1]} 22. Qxd2 {[%clk
0:00:29.1]} 22... Nb4 {[%clk 0:00:15.6]} 23. Bxb7 {[%clk 0:00:25.8]} 23... Qxb7
{[%clk 0:00:16.6]} 24. Ne5 {[%clk 0:00:21.5]} 24... Qc7 {[%clk 0:00:17]} 25. Ng4
{[%clk 0:00:19.3]} 25... h5 {[%clk 0:00:15.9]} 26. Nf6+ {[%clk 0:00:20.4]} 26...
Kf8 {[%clk 0:00:16.8]} 27. Qb2 {[%clk 0:00:15.9]} 27... Nc6 {[%clk 0:00:16.1]}
28. Ne4 {[%clk 0:00:12.2]} 28... Qe5 {[%clk 0:00:16.5]} 29. Qb1 {[%clk
0:00:09.1]} 29... Ke7 {[%clk 0:00:17.2]} 30. Ng5 {[%clk 0:00:10]} 30... Nb4
{[%clk 0:00:16.3]} 31. Kg2 {[%clk 0:00:09.1]} 31... Nc6 {[%clk 0:00:15.3]} 32.
Qd3 {[%clk 0:00:08.4]} 32... Qf5 {[%clk 0:00:14.7]} 33. Qe2 {[%clk 0:00:07.9]}
33... Ne5 {[%clk 0:00:13.4]} 34. e4 {[%clk 0:00:07.3]} 34... Qf6 {[%clk
0:00:14.7]} 35. f3 {[%clk 0:00:07]} 35... Nc6 {[%clk 0:00:15.3]} 36. f4 {[%clk
0:00:07.8]} 36... Qd4 {[%clk 0:00:16.3]} 37. Qf3 {[%clk 0:00:08.9]} 37... Nb4
{[%clk 0:00:17.1]} 38. f5 {[%clk 0:00:08.5]} 38... Qd2+ {[%clk 0:00:14.7]} 39.
Kh3 {[%clk 0:00:09.1]} 39... Nd3 {[%clk 0:00:16.6]} 40. f6+ {[%clk 0:00:05.4]}
40... Ke8 {[%clk 0:00:16.2]} 41. Qg2 {[%clk 0:00:07.3]} 41... Nf2+ {[%clk
0:00:17]} 42. Kh2 {[%clk 0:00:08.8]} 42... Ng4+ {[%clk 0:00:18.6]} 43. Kh3
{[%clk 0:00:10.3]} 43... Nf2+ {[%clk 0:00:19.9]} 44. Kh2 {[%clk 0:00:11.3]}
44... Ng4+ {[%clk 0:00:21]} 45. Kh3 {[%clk 0:00:12.9]} 45... Nf2+ {[%clk
0:00:22.3]} 1/2-1/2

[Event "*** Titled Tuesday Blitz"]
[Site "Chess.com"]
[Date "2019.11.05"]
[Round "3"]
[White "Alopekos"]
[Black "Taron_Shagbazyan"]
[Result "1-0"]
[WhiteElo "2486"]
[BlackElo "2700"]
[TimeControl "180+2"]
[EndTime "13:38:51 PST"]
[Termination "Alopekos won by resignation"]

1. e4 {[%clk 0:03:01.9]} 1... e5 {[%clk 0:02:59.8]} 2. Nf3 {[%clk 0:03:02.7]}
2... Nc6 {[%clk 0:03:01.2]} 3. Bb5 {[%clk 0:03:04.3]} 3... a6 {[%clk 0:03:02.6]}
4. Ba4 {[%clk 0:03:05.4]} 4... Nf6 {[%clk 0:03:03.5]} 5. O-O {[%clk 0:03:06.8]}
5... b5 {[%clk 0:03:05.1]} 6. Bb3 {[%clk 0:03:08]} 6... Bb7 {[%clk 0:03:06.7]}
7. a4 {[%clk 0:02:43.5]} 7... Be7 {[%clk 0:03:06.1]} 8. axb5 {[%clk 0:02:44.1]}
8... axb5 {[%clk 0:03:08]} 9. Rxa8 {[%clk 0:02:45.2]} 9... Qxa8 {[%clk
0:03:03.1]} 10. Nc3 {[%clk 0:02:45.6]} 10... b4 {[%clk 0:02:45.8]} 11. Nd5
{[%clk 0:02:45.8]} 11... Nxd5 {[%clk 0:02:47]} 12. Bxd5 {[%clk 0:02:17.6]} 12...
d6 {[%clk 0:02:44.5]} 13. c3 {[%clk 0:01:30.8]} 13... O-O {[%clk 0:02:37.1]} 14.
d4 {[%clk 0:01:30.2]} 14... bxc3 {[%clk 0:02:28.5]} 15. bxc3 {[%clk 0:01:32.1]}
15... exd4 {[%clk 0:02:27.4]} 16. cxd4 {[%clk 0:01:32.4]} 16... Na5 {[%clk
0:02:25]} 17. Bxb7 {[%clk 0:01:29.1]} 17... Qxb7 {[%clk 0:02:26.9]} 18. Re1
{[%clk 0:01:28.2]} 18... c5 {[%clk 0:02:26.3]} 19. e5 {[%clk 0:00:30]} 19... c4
{[%clk 0:02:22.4]} 20. Ba3 {[%clk 0:00:30.8]} 20... dxe5 {[%clk 0:02:15.5]} 21.
Bxe7 {[%clk 0:00:29.7]} 21... Qxe7 {[%clk 0:02:16.9]} 22. Nxe5 {[%clk
0:00:29.2]} 22... Qb4 {[%clk 0:02:15]} 23. Qe2 {[%clk 0:00:14.1]} 23... c3
{[%clk 0:02:10.6]} 24. Nd7 {[%clk 0:00:14.5]} 24... g6 {[%clk 0:01:41]} 25. Nxf8
{[%clk 0:00:04.6]} 25... Kxf8 {[%clk 0:01:42.4]} 26. Qe8+ {[%clk 0:00:05.5]}
26... Kg7 {[%clk 0:01:43.8]} 27. Qe5+ {[%clk 0:00:07.1]} 27... Kg8 {[%clk
0:01:41.7]} 28. Qe8+ {[%clk 0:00:06.2]} 28... Kg7 {[%clk 0:01:41.4]} 29. Qe5+
{[%clk 0:00:07.8]} 29... Kg8 {[%clk 0:01:41.2]} 30. Qc5 {[%clk 0:00:08.9]} 30...
Qxc5 {[%clk 0:01:34.6]} 31. dxc5 {[%clk 0:00:10.2]} 31... Kf8 {[%clk 0:01:29.1]}
32. Rc1 {[%clk 0:00:10.4]} 32... Ke7 {[%clk 0:01:30.4]} 33. Rxc3 {[%clk
0:00:11.5]} 33... Nc6 {[%clk 0:01:31.3]} 34. Rd3 {[%clk 0:00:07]} 34... Ne5
{[%clk 0:01:31.5]} 35. Re3 {[%clk 0:00:03.5]} 35... Kf6 {[%clk 0:01:32.8]} 36.
f4 {[%clk 0:00:04.4]} 36... Nc6 {[%clk 0:01:31.4]} 37. Rd3 {[%clk 0:00:05.6]}
37... Ke7 {[%clk 0:01:32.1]} 38. Kf2 {[%clk 0:00:05.7]} 38... Nb4 {[%clk
0:01:32.2]} 39. Rd6 {[%clk 0:00:06.5]} 39... Na2 {[%clk 0:01:28.8]} 40. Rd4
{[%clk 0:00:05.4]} 40... Nc3 {[%clk 0:01:28.7]} 41. Rc4 {[%clk 0:00:05.7]} 41...
Nb5 {[%clk 0:01:25.3]} 42. Kf3 {[%clk 0:00:05.4]} 42... Ke6 {[%clk 0:01:26.6]}
43. Rc1 {[%clk 0:00:03.1]} 43... Kd5 {[%clk 0:01:27.3]} 44. c6 {[%clk
0:00:04.5]} 44... Nd4+ {[%clk 0:01:28.3]} 45. Kg4 {[%clk 0:00:04.9]} 45... Nxc6
{[%clk 0:01:30.2]} 46. Kg5 {[%clk 0:00:05.6]} 46... Nd4 {[%clk 0:01:23.2]} 47.
Kf6 {[%clk 0:00:05.7]} 47... Ne2 {[%clk 0:01:24.2]} 48. Rf1 {[%clk 0:00:02.7]}
48... Ke4 {[%clk 0:01:24.6]} 49. g3 {[%clk 0:00:04.1]} 49... Nd4 {[%clk
0:01:15.5]} 50. Kxf7 {[%clk 0:00:04.5]} 50... Nf3 {[%clk 0:01:16.8]} 51. Rxf3
{[%clk 0:00:05.1]} 51... Kxf3 {[%clk 0:01:18.7]} 52. Kg7 {[%clk 0:00:06.4]}
52... g5 {[%clk 0:01:14.9]} 53. fxg5 {[%clk 0:00:04.7]} 53... Kg4 {[%clk
0:01:16.1]} 54. Kxh7 {[%clk 0:00:05.9]} 54... Kxg5 {[%clk 0:01:17.6]} 55. Kg7
{[%clk 0:00:05.3]} 55... Kg4 {[%clk 0:01:19]} 56. Kf6 {[%clk 0:00:06.4]} 56...
Kh3 {[%clk 0:01:19.2]} 57. Kf5 {[%clk 0:00:07.5]} 57... Kxh2 {[%clk 0:01:20]}
58. g4 {[%clk 0:00:09.4]} 1-0

[Event "*** Titled Tuesday Blitz"]
[Site "Chess.com"]
[Date "2019.11.05"]
[Round "3"]
[White "Vamostodorecto"]
[Black "RoelandPruijssers"]
[Result "0-1"]
[WhiteElo "2437"]
[BlackElo "2643"]
[TimeControl "180+2"]
[EndTime "13:38:54 PST"]
[Termination "RoelandPruijssers won by checkmate"]

1. d4 {[%clk 0:03:01.9]} 1... f5 {[%clk 0:02:58.3]} 2. e4 {[%clk 0:03:01.7]}
2... fxe4 {[%clk 0:02:59]} 3. Nc3 {[%clk 0:03:03]} 3... Nf6 {[%clk 0:02:59.9]}
4. Bg5 {[%clk 0:03:03.4]} 4... g6 {[%clk 0:03:01]} 5. h4 {[%clk 0:03:00.7]} 5...
d5 {[%clk 0:02:47.3]} 6. h5 {[%clk 0:02:52.8]} 6... Bf5 {[%clk 0:02:39.4]} 7.
Bxf6 {[%clk 0:02:49.2]} 7... exf6 {[%clk 0:02:39]} 8. g4 {[%clk 0:02:50.5]} 8...
Be6 {[%clk 0:02:39.4]} 9. hxg6 {[%clk 0:02:50.5]} 9... Qd7 {[%clk 0:02:37.4]}
10. g5 {[%clk 0:02:39.4]} 10... fxg5 {[%clk 0:02:35.4]} 11. Qh5 {[%clk 0:02:39]}
11... Qg7 {[%clk 0:02:32.8]} 12. O-O-O {[%clk 0:02:35.3]} 12... Nd7 {[%clk
0:02:10.6]} 13. Bh3 {[%clk 0:02:23.6]} 13... hxg6 {[%clk 0:01:35.2]} 14. Qxg5
{[%clk 0:02:23.1]} 14... Rh5 {[%clk 0:01:26.8]} 15. Qg2 {[%clk 0:02:18]} 15...
O-O-O {[%clk 0:01:07.2]} 16. Bxe6 {[%clk 0:01:32.7]} 16... Qh6+ {[%clk 0:01:07]}
17. Kb1 {[%clk 0:01:34.3]} 17... Rxh1 {[%clk 0:01:08.3]} 18. Bxd5 {[%clk
0:01:35.5]} 18... Nf6 {[%clk 0:00:53.8]} 19. Be6+ {[%clk 0:01:26.8]} 19... Kb8
{[%clk 0:00:49.7]} 20. Nxe4 {[%clk 0:01:26]} 20... Rh2 {[%clk 0:00:38.6]} 21.
Qf3 {[%clk 0:01:22.7]} 21... Nxe4 {[%clk 0:00:36.3]} 22. Qxe4 {[%clk 0:01:24.6]}
22... Rxf2 {[%clk 0:00:35.1]} 23. Nf3 {[%clk 0:01:21.4]} 23... Qh5 {[%clk
0:00:30.9]} 24. Bg4 {[%clk 0:01:10.5]} 24... Qb5 {[%clk 0:00:28]} 25. Ne5 {[%clk
0:00:45.4]} 25... Rf1 {[%clk 0:00:25.6]} 26. c4 {[%clk 0:00:24.5]} 26... Rxd1+
{[%clk 0:00:26.1]} 27. Bxd1 {[%clk 0:00:26.4]} 27... Qb4 {[%clk 0:00:26.9]} 28.
Bf3 {[%clk 0:00:24.4]} 28... c6 {[%clk 0:00:21.3]} 29. a3 {[%clk 0:00:18.7]}
29... Qb6 {[%clk 0:00:19.4]} 30. Nxg6 {[%clk 0:00:11.4]} 30... Bxa3 {[%clk
0:00:16.8]} 31. Qf4+ {[%clk 0:00:05.2]} 31... Ka8 {[%clk 0:00:16.6]} 32. Qd2
{[%clk 0:00:05.2]} 32... Rxd4 {[%clk 0:00:16.5]} 33. Qc3 {[%clk 0:00:05.7]}
33... Bb4 {[%clk 0:00:13.5]} 34. Qc2 {[%clk 0:00:04.4]} 34... Rd2 {[%clk
0:00:10]} 35. Qe4 {[%clk 0:00:04]} 35... a5 {[%clk 0:00:04.9]} 36. Qe8+ {[%clk
0:00:03.9]} 36... Ka7 {[%clk 0:00:06.2]} 37. c5 {[%clk 0:00:03.5]} 37... Bxc5
{[%clk 0:00:06.4]} 38. Qh8 {[%clk 0:00:03.1]} 38... Bd4 {[%clk 0:00:06.9]} 39.
Ne7 {[%clk 0:00:03.5]} 39... Qxb2# {[%clk 0:00:07.5]} 0-1

[Event "*** Titled Tuesday Blitz"]
[Site "Chess.com"]
[Date "2019.11.05"]
[Round "3"]
[White "Alexander_Donchenko"]
[Black "ValeriyGrinev"]
[Result "0-1"]
[WhiteElo "2761"]
[BlackElo "2564"]
[TimeControl "180+2"]
[EndTime "13:38:56 PST"]
[Termination "ValeriyGrinev won by resignation"]

1. e4 {[%clk 0:03:01.9]} 1... c5 {[%clk 0:03:00.3]} 2. Nf3 {[%clk 0:03:02.8]}
2... e6 {[%clk 0:03:01.7]} 3. Nc3 {[%clk 0:03:00]} 3... a6 {[%clk 0:03:02]} 4.
Be2 {[%clk 0:02:59.1]} 4... b5 {[%clk 0:02:59.1]} 5. O-O {[%clk 0:02:59.5]} 5...
Bb7 {[%clk 0:02:59.2]} 6. d4 {[%clk 0:02:59.1]} 6... cxd4 {[%clk 0:03:00.1]} 7.
Qxd4 {[%clk 0:02:59.4]} 7... Nc6 {[%clk 0:02:59.9]} 8. Qd2 {[%clk 0:02:55.9]}
8... Nf6 {[%clk 0:03:00.3]} 9. e5 {[%clk 0:02:54.3]} 9... Ng4 {[%clk 0:03:01]}
10. Qf4 {[%clk 0:02:51.9]} 10... h5 {[%clk 0:03:01.1]} 11. h3 {[%clk 0:02:41.4]}
11... Nh6 {[%clk 0:03:01.3]} 12. Ne4 {[%clk 0:02:39.9]} 12... Nf5 {[%clk
0:02:54.4]} 13. c3 {[%clk 0:02:34.6]} 13... Be7 {[%clk 0:02:53.1]} 14. Bd3
{[%clk 0:02:33.2]} 14... Qc7 {[%clk 0:02:36.3]} 15. Bd2 {[%clk 0:02:28.6]} 15...
Rg8 {[%clk 0:02:30.3]} 16. Rfe1 {[%clk 0:02:22.5]} 16... O-O-O {[%clk
0:02:04.5]} 17. Neg5 {[%clk 0:02:03.7]} 17... f6 {[%clk 0:02:02.1]} 18. exf6
{[%clk 0:02:04.2]} 18... gxf6 {[%clk 0:02:04]} 19. Nf7 {[%clk 0:02:01.1]} 19...
Rdf8 {[%clk 0:02:00.1]} 20. Bxf5 {[%clk 0:02:01.7]} 20... Qxf4 {[%clk
0:01:56.8]} 21. Bxf4 {[%clk 0:02:01.3]} 21... Rxf7 {[%clk 0:01:58.1]} 22. Rxe6
{[%clk 0:01:50.8]} 22... Rfg7 {[%clk 0:01:59.2]} 23. Re2 {[%clk 0:01:42.4]}
23... Rxg2+ {[%clk 0:01:59.3]} 24. Kf1 {[%clk 0:01:43.8]} 24... Ne5 {[%clk
0:01:56.4]} 25. Be4 {[%clk 0:01:01.8]} 25... Bxe4 {[%clk 0:01:22.7]} 26. Rxe4
{[%clk 0:01:02.3]} 26... Nxf3 {[%clk 0:01:23.7]} 27. Rxe7 {[%clk 0:01:03]} 27...
Rg1+ {[%clk 0:01:24.9]} 28. Ke2 {[%clk 0:01:04.5]} 28... Rxa1 {[%clk 0:01:26.6]}
29. Kxf3 {[%clk 0:01:05.8]} 29... Rxa2 {[%clk 0:01:27.9]} 30. b4 {[%clk
0:01:01.3]} 30... Rc2 {[%clk 0:01:26.2]} 31. Re3 {[%clk 0:01:00.7]} 31... Rg1
{[%clk 0:01:08.8]} 32. Rd3 {[%clk 0:00:59.4]} 32... Ra1 {[%clk 0:01:03.3]} 33.
Be3 {[%clk 0:00:57.4]} 33... a5 {[%clk 0:01:04.2]} 34. bxa5 {[%clk 0:00:57.6]}
34... Rxa5 {[%clk 0:01:06.1]} 35. Bd4 {[%clk 0:00:56.9]} 35... f5 {[%clk
0:01:05.9]} 36. Re3 {[%clk 0:00:56.8]} 36... Ra3 {[%clk 0:01:05.1]} 37. Kg3
{[%clk 0:00:52.1]} 37... Kb7 {[%clk 0:00:59.2]} 38. Re5 {[%clk 0:00:46.7]} 38...
Kc6 {[%clk 0:01:00.4]} 39. Rc5+ {[%clk 0:00:45.6]} 39... Kb6 {[%clk 0:00:55.6]}
40. Rxf5+ {[%clk 0:00:40.6]} 40... Ka6 {[%clk 0:00:56.9]} 41. Rf3 {[%clk
0:00:23.7]} 41... Ka5 {[%clk 0:00:40.1]} 42. Kh4 {[%clk 0:00:18.5]} 42... Ka4
{[%clk 0:00:41]} 43. Rg3 {[%clk 0:00:14.1]} 43... b4 {[%clk 0:00:31.6]} 44. Kxh5
{[%clk 0:00:15.2]} 44... b3 {[%clk 0:00:30.2]} 45. Bg7 {[%clk 0:00:05.9]} 45...
b2 {[%clk 0:00:30.7]} 0-1

[Event "*** Titled Tuesday Blitz"]
[Site "Chess.com"]
[Date "2019.11.05"]
[Round "3"]
[White "Sjakkerntobi"]
[Black "PowerThinking2650"]
[Result "1-0"]
[WhiteElo "2115"]
[BlackElo "2323"]
[TimeControl "180+2"]
[EndTime "13:39:00 PST"]
[Termination "Sjakkerntobi won on time"]

1. e4 {[%clk 0:03:01.9]} 1... e5 {[%clk 0:02:59.8]} 2. Nf3 {[%clk 0:02:59]} 2...
Nc6 {[%clk 0:03:00.2]} 3. Bb5 {[%clk 0:02:59.3]} 3... a6 {[%clk 0:03:01]} 4. Ba4
{[%clk 0:02:59.2]} 4... Nf6 {[%clk 0:03:01.3]} 5. O-O {[%clk 0:02:57.6]} 5...
Be7 {[%clk 0:03:00.3]} 6. Re1 {[%clk 0:02:57.5]} 6... b5 {[%clk 0:03:01.7]} 7.
Bb3 {[%clk 0:02:58.2]} 7... d6 {[%clk 0:03:01.7]} 8. c3 {[%clk 0:02:57.9]} 8...
O-O {[%clk 0:03:02.7]} 9. h3 {[%clk 0:02:58.2]} 9... Bb7 {[%clk 0:03:03.5]} 10.
d3 {[%clk 0:02:58.7]} 10... Na5 {[%clk 0:03:02.6]} 11. Bc2 {[%clk 0:02:59.5]}
11... c5 {[%clk 0:03:04]} 12. Nbd2 {[%clk 0:02:56.8]} 12... Re8 {[%clk 0:03:04]}
13. Nf1 {[%clk 0:02:56.9]} 13... Bf8 {[%clk 0:03:04.2]} 14. Ng3 {[%clk
0:02:55.7]} 14... d5 {[%clk 0:02:54.2]} 15. Qe2 {[%clk 0:02:39.8]} 15... d4
{[%clk 0:02:54.5]} 16. Bg5 {[%clk 0:02:37.6]} 16... Qb6 {[%clk 0:02:47]} 17. Nh4
{[%clk 0:02:14]} 17... Rac8 {[%clk 0:02:46.4]} 18. Nhf5 {[%clk 0:02:08.4]} 18...
c4 {[%clk 0:02:41.9]} 19. cxd4 {[%clk 0:01:57.3]} 19... exd4 {[%clk 0:02:39.6]}
20. Rac1 {[%clk 0:01:20.7]} 20... Re6 {[%clk 0:01:32]} 21. Bd2 {[%clk 0:00:53]}
21... b4 {[%clk 0:00:43.6]} 22. dxc4 {[%clk 0:00:47.7]} 22... Nxc4 {[%clk
0:00:38.9]} 23. Bb3 {[%clk 0:00:40.6]} 23... Ne5 {[%clk 0:00:20.3]} 24. Bxe6
{[%clk 0:00:40.2]} 24... fxe6 {[%clk 0:00:21.2]} 25. Rxc8 {[%clk 0:00:37.6]}
25... Bxc8 {[%clk 0:00:21.1]} 26. Nh4 {[%clk 0:00:38.9]} 26... Bd7 {[%clk
0:00:19.9]} 27. Nf3 {[%clk 0:00:35]} 27... Bb5 {[%clk 0:00:20.1]} 28. Qd1 {[%clk
0:00:36]} 28... Nd3 {[%clk 0:00:20.8]} 29. Rf1 {[%clk 0:00:35.8]} 29... Nxb2
{[%clk 0:00:21.6]} 30. Qb3 {[%clk 0:00:34.8]} 30... Nc4 {[%clk 0:00:21.7]} 31.
Rc1 {[%clk 0:00:26.1]} 31... Nxd2 {[%clk 0:00:18.4]} 32. Nxd2 {[%clk 0:00:28]}
32... a5 {[%clk 0:00:19.3]} 33. e5 {[%clk 0:00:27.3]} 33... Nd5 {[%clk
0:00:19.9]} 34. Nge4 {[%clk 0:00:23.2]} 34... Nc3 {[%clk 0:00:20.4]} 35. Nxc3
{[%clk 0:00:23.4]} 35... dxc3 {[%clk 0:00:21.3]} 36. Ne4 {[%clk 0:00:23.5]}
36... Bd3 {[%clk 0:00:20.4]} 37. Ng5 {[%clk 0:00:23.5]} 37... Bf5 {[%clk
0:00:20]} 38. g4 {[%clk 0:00:24.2]} 38... Be7 {[%clk 0:00:19.3]} 39. gxf5 {[%clk
0:00:25]} 39... Bxg5 {[%clk 0:00:20.3]} 40. Rd1 {[%clk 0:00:26.5]} 40... h6
{[%clk 0:00:20.5]} 41. fxe6 {[%clk 0:00:26.6]} 41... Kh7 {[%clk 0:00:20.6]} 42.
Qc2+ {[%clk 0:00:27.3]} 42... g6 {[%clk 0:00:18.2]} 43. Rd7+ {[%clk 0:00:27.7]}
43... Kg8 {[%clk 0:00:19]} 44. Qxg6+ {[%clk 0:00:28.3]} 1-0

[Event "*** Titled Tuesday Blitz"]
[Site "Chess.com"]
[Date "2019.11.05"]
[Round "3"]
[White "cool4chess"]
[Black "JSPrepz"]
[Result "0-1"]
[WhiteElo "2549"]
[BlackElo "2830"]
[TimeControl "180+2"]
[EndTime "13:39:05 PST"]
[Termination "JSPrepz won by resignation"]

1. e4 {[%clk 0:03:01.9]} 1... e5 {[%clk 0:02:57.6]} 2. Nf3 {[%clk 0:02:59.1]}
2... Nc6 {[%clk 0:02:58.4]} 3. Bb5 {[%clk 0:03:00.1]} 3... f5 {[%clk 0:02:59.2]}
4. d3 {[%clk 0:03:00.2]} 4... fxe4 {[%clk 0:03:00.4]} 5. dxe4 {[%clk 0:03:02.1]}
5... Nf6 {[%clk 0:03:00.2]} 6. O-O {[%clk 0:02:54.4]} 6... Bc5 {[%clk
0:03:00.6]} 7. Bg5 {[%clk 0:02:51.6]} 7... d6 {[%clk 0:03:00.1]} 8. h3 {[%clk
0:02:43.4]} 8... O-O {[%clk 0:03:00.3]} 9. Nc3 {[%clk 0:02:44.6]} 9... Kh8
{[%clk 0:02:58.5]} 10. Nd5 {[%clk 0:02:34.8]} 10... a6 {[%clk 0:02:52.7]} 11.
Bc4 {[%clk 0:02:25.6]} 11... Na5 {[%clk 0:02:31.4]} 12. Bd3 {[%clk 0:02:03.2]}
12... Nc6 {[%clk 0:02:31.5]} 13. Bc4 {[%clk 0:02:03.4]} 13... Na5 {[%clk
0:02:06.7]} 14. Bd3 {[%clk 0:02:03.8]} 14... c6 {[%clk 0:02:08.1]} 15. Nxf6
{[%clk 0:01:59.6]} 15... gxf6 {[%clk 0:02:09]} 16. Bh6 {[%clk 0:01:57.5]} 16...
Rg8 {[%clk 0:02:09.7]} 17. Kh2 {[%clk 0:01:52.4]} 17... b5 {[%clk 0:02:03.8]}
18. Nh4 {[%clk 0:01:50.7]} 18... Nb7 {[%clk 0:01:55.2]} 19. f4 {[%clk
0:01:29.1]} 19... Be6 {[%clk 0:01:42.9]} 20. Qf3 {[%clk 0:01:18.5]} 20... Qe7
{[%clk 0:01:39]} 21. fxe5 {[%clk 0:01:03.3]} 21... fxe5 {[%clk 0:01:39.2]} 22.
Qf6+ {[%clk 0:01:04.7]} 22... Qxf6 {[%clk 0:01:40.1]} 23. Rxf6 {[%clk
0:01:06.6]} 23... Rae8 {[%clk 0:01:35.6]} 24. Raf1 {[%clk 0:01:03.2]} 24... Bb6
{[%clk 0:01:36.7]} 25. Nf5 {[%clk 0:00:50.1]} 25... Bd8 {[%clk 0:01:36.4]} 26.
Ng7 {[%clk 0:00:20]} 26... Rxg7 {[%clk 0:01:25.2]} 27. Bxg7+ {[%clk 0:00:21]}
27... Kxg7 {[%clk 0:01:27.1]} 28. R6f3 {[%clk 0:00:22.2]} 28... Nc5 {[%clk
0:01:26.3]} 29. Rg3+ {[%clk 0:00:22.1]} 29... Kh8 {[%clk 0:01:26.1]} 30. b3
{[%clk 0:00:18.5]} 30... Bh4 {[%clk 0:01:22]} 31. Rgf3 {[%clk 0:00:19.2]} 31...
Kg7 {[%clk 0:01:21]} 32. c3 {[%clk 0:00:19.2]} 32... a5 {[%clk 0:01:16.5]} 33.
Bc2 {[%clk 0:00:19.5]} 33... b4 {[%clk 0:01:14.8]} 34. Rd1 {[%clk 0:00:18.9]}
34... Be7 {[%clk 0:01:13.5]} 35. Rg3+ {[%clk 0:00:18.7]} 35... Kh8 {[%clk
0:01:12.2]} 36. Rf3 {[%clk 0:00:16.5]} 36... Rd8 {[%clk 0:00:36]} 37. Rg3 {[%clk
0:00:10.3]} 37... Bf8 {[%clk 0:00:31.6]} 38. Rf3 {[%clk 0:00:09.5]} 38... Bh6
{[%clk 0:00:32.8]} 39. g3 {[%clk 0:00:09.1]} 39... Bg7 {[%clk 0:00:28.2]} 40.
Rf2 {[%clk 0:00:08.5]} 40... d5 {[%clk 0:00:25.7]} 41. exd5 {[%clk 0:00:08.5]}
41... cxd5 {[%clk 0:00:27.6]} 42. cxb4 {[%clk 0:00:07.6]} 42... axb4 {[%clk
0:00:29.5]} 43. Bf5 {[%clk 0:00:03.2]} 43... Rf8 {[%clk 0:00:24]} 44. g4 {[%clk
0:00:04.2]} 44... Bxf5 {[%clk 0:00:22.9]} 45. gxf5 {[%clk 0:00:06.1]} 45... Ne4
{[%clk 0:00:21.6]} 46. Rff1 {[%clk 0:00:06.6]} 46... Nc3 {[%clk 0:00:22.4]} 47.
Rd3 {[%clk 0:00:06.9]} 47... e4 {[%clk 0:00:24]} 48. Rg3 {[%clk 0:00:07.5]}
48... Be5 {[%clk 0:00:25.2]} 0-1